bitfinex/quotes_SOLUSD_20241121
["timestamp","ask_amount","ask_price","bid_price","bid_amount"]
[1732150269863,16.1888,237.88,237.82,5.62477177]
[1732150270072,16.1888,237.88,237.83,5.30927718]
[1732150270274,16.1888,237.88,237.84,5.62477177]
[1732150270473,16.1888,237.88,237.84,10.93404895]
[1732150270782,4.2026,237.95,237.84,10.93404895]
[1732150270783,15.1692,237.94,237.85,5.30927718]
[1732150271068,15.1692,237.94,237.86,5.62477177]
[1732150272881,15.1692,237.94,237.87,20.0]
[1732150273047,10.97228792,238.0,237.87,20.0]
[1732150273048,19.3711,237.99,237.89,20.0]
[1732150273245,19.3711,237.99,237.9,5.62477177]
[1732150274046,15.1692,237.99,237.9,10.93404895]
[1732150274746,19.371,237.99,237.9,10.93404895]
[1732150278276,19.371,237.99,237.9,5.62477177]
[1732150278479,23.776884,237.98,237.9,5.62477177]
[1732150279258,4.2022,237.97,237.9,5.62477177]
[1732150280157,4.2022,237.97,237.84,5.62477177]
[1732150280671,4.2022,237.97,237.84,10.93404895]
[1732150281384,24.276884,237.96,237.84,10.93404895]
[1732150281579,12.69574272,237.95,237.84,5.62477177]
[1732150281875,23.776884,237.94,237.84,5.62477177]
[1732150282877,0.5,237.92,237.84,5.62477177]
[1732150283088,0.5,237.92,237.79,5.30927718]
[1732150283089,28.84284272,237.9,237.79,5.30927718]
[1732150283852,0.5,237.88,237.77,5.62477177]
[1732150284081,13.19574272,237.88,237.77,5.62477177]
[1732150285062,16.89964272,237.87,237.77,5.62477177]
[1732150285248,12.69574272,237.86,237.77,5.62477177]
[1732150286078,16.89964272,237.87,237.77,5.62477177]
[1732150286454,23.776884,237.89,237.78,5.30927718]
[1732150286455,4.2037,237.89,237.78,5.30927718]
[1732150286674,4.2037,237.89,237.79,5.62477177]
[1732150287173,4.2037,237.89,237.8,5.30927718]
[1732150287380,4.2037,237.89,237.81,5.62477177]
[1732150287580,4.2037,237.89,237.81,10.93404895]
[1732150288783,16.1471,237.9,237.81,10.93404895]
[1732150289085,4.2034,237.91,237.82,5.30927718]
[1732150289268,6.2622,237.92,237.83,5.62477177]
[1732150289463,23.776884,237.93,237.84,5.30927718]
[1732150289652,23.776884,237.93,237.85,5.62477177]
[1732150290458,4.203,237.92,237.85,5.62477177]
[1732150299889,4.203,237.92,237.84,5.30927718]
[1732150301281,4.203,237.92,237.8,20.0]
[1732150301497,4.2034,237.9,237.79,6.42889701]
[1732150301672,4.2034,237.9,237.8,20.0]
[1732150302482,23.776884,237.91,237.8,20.0]
[1732150303801,23.776884,237.92,237.8,20.0]
[1732150303977,27.979884,237.92,237.8,20.0]
[1732150304301,27.979884,237.92,237.8,25.56378348]
[1732150307677,36.10879506,237.92,237.8,20.0]
[1732150309280,36.10879506,237.92,237.79,20.0]
[1732150310208,27.979884,237.92,237.79,31.99268049]
[1732150310513,27.979884,237.92,237.8,5.56378348]
[1732150310672,27.979884,237.92,237.8,10.62666636]
[1732150312400,23.776884,237.93,237.81,16.3226]
[1732150312613,4.2027,237.94,237.82,10.62666636]
[1732150312909,23.776884,237.93,237.82,10.62666636]
[1732150313380,4.203,237.92,237.82,10.62666636]
[1732150313799,4.2025,237.95,237.83,20.0]
[1732150314003,4.2025,237.95,237.84,10.62666636]
[1732150314499,4.2019,237.99,237.85,26.3914]
[1732150314706,4.2019,237.99,237.86,10.62666636]
[1732150315992,4.2019,237.99,237.87,20.0]
[1732150316303,4.2019,237.99,237.88,5.56378348]
[1732150317501,16.34689103,238.0,237.88,10.62666636]
[1732150317717,16.34689103,238.0,237.89,15.4616]
[1732150317892,16.34689103,238.0,237.89,21.02538348]
[1732150318091,20.54859103,238.0,237.89,21.02538348]
[1732150319309,10.97228792,238.0,237.89,21.02538348]
[1732150319611,10.97228792,238.0,237.9,10.62666636]
[1732150319818,10.97228792,238.0,237.91,20.0]
[1732150320515,10.97228792,238.0,237.91,25.56378348]
[1732150321196,10.97228792,238.0,237.91,20.0]
[1732150322483,15.17388792,238.0,237.9,20.0]
[1732150323890,23.776884,237.97,237.89,15.4616]
[1732150324527,31.90579506,237.99,237.89,15.4616]
[1732150325717,23.776884,237.97,237.89,15.4616]
[1732150326702,27.978884,237.98,237.89,15.4616]
[1732150328994,15.17408792,238.0,237.9,10.62666636]
[1732150329195,10.97228792,238.0,237.9,10.62666636]
[1732150329427,15.17398792,238.0,237.9,10.62666636]
[1732150334228,10.97228792,238.0,237.9,10.62666636]
[1732150339311,10.97228792,238.0,237.92,6.5428]
[1732150339522,10.97228792,238.0,237.93,30.62666636]
[1732150342416,10.97228792,238.0,237.92,6.5428]
[1732150342622,15.17388792,238.0,237.92,6.5428]
[1732150343219,23.30279898,238.0,237.89,15.4616]
[1732150344016,8.12891106,237.96,237.87,6.6583]
[1732150344216,8.12891106,237.95,237.83,15.3668]
[1732150345237,4.2027,237.94,237.83,15.3668]
[1732150346017,4.2027,237.94,237.83,20.93058348]
[1732150346222,4.2027,237.94,237.84,30.62666636]
[1732150346553,27.979084,237.97,237.84,30.62666636]
[1732150348315,36.10799506,237.97,237.84,30.62666636]
[1732150348745,27.979084,237.97,237.84,30.62666636]
[1732150348941,4.2022,237.97,237.84,30.62666636]
[1732150349829,10.97228792,238.0,237.87,20.0]
[1732150350039,10.97228792,238.0,237.89,20.0]
[1732150350232,10.97228792,238.0,237.9,10.62666636]
[1732150350542,10.97228792,238.0,237.91,20.0]
[1732150350747,10.97228792,238.0,237.92,10.62666636]
[1732150350955,10.97228792,238.0,237.94,20.0]
[1732150351240,10.97228792,238.0,237.93,15.347]
[1732150351430,10.97228792,238.0,237.94,20.0]
[1732150353946,10.97228792,238.0,237.93,15.347]
[1732150357435,10.97228792,238.0,237.93,25.97366636]
[1732150358540,10.97228792,238.0,237.94,10.62666636]
[1732150365429,10.97228792,238.0,237.95,20.0]
[1732150365762,10.97228792,238.0,237.97,20.0]
[1732150367458,10.97228792,238.0,237.97,30.62666636]
[1732150367635,10.97228792,238.0,237.98,5.56378348]
[1732150367834,10.97228792,238.0,237.98,10.62666636]
[1732150369051,10.97228792,238.0,237.98,5.56378348]
[1732150370136,10.97228792,238.0,237.97,20.0]
[1732150370356,10.97228792,238.0,237.94,26.4958]
[1732150370553,10.97228792,238.0,237.95,10.62666636]
[1732150370861,10.97228792,238.0,237.96,20.0]
[1732150371762,10.97228792,238.0,237.96,25.56378348]
[1732150373365,10.97228792,238.0,237.97,5.56378348]
[1732150373840,10.97228792,238.0,237.97,10.62666636]
[1732150378742,10.97228792,238.0,237.98,5.06288288]
[1732150378944,10.97228792,238.0,237.99,5.56378348]
[1732150379161,10.97228792,238.0,237.99,10.62666636]
[1732150383972,10.97228792,238.0,237.9,6.42889701]
[1732150384272,10.97228792,238.0,237.89,5.06288288]
[1732150384644,15.17388792,238.0,237.89,5.06288288]
[1732150385857,8.12891106,237.97,237.85,6.42889701]
[1732150386165,8.12891106,237.97,237.84,5.06288288]
[1732150386373,23.776884,237.97,237.85,10.62666636]
[1732150387165,23.776884,237.97,237.86,20.0]
[1732150387371,4.2023,237.96,237.86,20.0]
[1732150388047,4.2023,237.96,237.85,10.62666636]
[1732150388668,4.2023,237.96,237.86,10.62666636]
[1732150389065,16.4758,237.99,237.86,10.62666636]
[1732150389249,4.2021,237.98,237.86,10.62666636]
[1732150390278,23.776884,237.97,237.86,10.62666636]
[1732150390479,27.978884,237.98,237.86,10.62666636]
[1732150391679,23.776884,237.96,237.86,10.62666636]
[1732150391875,23.776884,237.94,237.86,5.06288288]
[1732150392079,23.776884,237.94,237.81,10.62666636]
[1732150392580,16.5857,237.93,237.81,10.62666636]
[1732150393083,16.5857,237.93,237.82,20.0]
[1732150393456,23.776884,237.92,237.82,20.0]
[1732150393968,4.2032,237.91,237.82,20.0]
[1732150394482,4.2032,237.91,237.82,25.56378348]
[1732150395757,27.979984,237.92,237.83,5.56378348]
[1732150396076,20.7886,237.93,237.83,10.62666636]
[1732150396486,16.801379,237.92,237.83,10.62666636]
[1732150403262,10.4667,237.97,237.84,20.0]
[1732150403461,10.4667,237.97,237.86,20.0]
[1732150403684,16.79871,237.95,237.87,10.62666636]
[1732150407680,4.2022,237.97,237.87,10.62666636]
[1732150409875,16.798273,237.98,237.87,10.62666636]
[1732150410189,16.798273,237.98,237.88,20.0]
[1732150410398,16.798273,237.98,237.88,30.62666636]
[1732150410581,16.798273,237.98,237.9,20.0]
[1732150410776,16.798273,237.98,237.91,10.62666636]
[1732150411487,16.798273,237.98,237.91,5.56378348]
[1732150411689,10.97228792,238.0,237.91,5.56378348]
[1732150411886,16.7958,237.99,237.91,5.56378348]
[1732150412088,10.97228792,238.0,237.91,5.56378348]
[1732150412705,15.17388792,238.0,237.85,25.56378348]
[1732150412869,15.17388792,238.0,237.85,30.62666636]
[1732150414175,23.776884,237.99,237.85,30.62666636]
[1732150414777,4.202,237.98,237.85,30.62666636]
[1732150426715,4.202,237.98,237.85,20.0]
[1732150431189,4.202,237.98,237.85,25.56378348]
[1732150434790,23.776884,237.97,237.85,25.56378348]
[1732150435210,23.776884,237.97,237.85,5.56378348]
[1732150435589,4.2023,237.96,237.85,5.56378348]
[1732150436910,4.2023,237.96,237.84,22.8636]
[1732150437909,24.276884,237.95,237.84,22.8636]
[1732150438920,0.5,237.95,237.84,22.8636]
[1732150439082,4.2027,237.94,237.84,22.8636]
[1732150442813,9.50002537,237.94,237.84,22.8636]
[1732150443430,9.50002537,237.94,237.84,27.64755066]
[1732150443600,16.802,237.97,237.85,4.78395066]
[1732150443803,4.2025,237.96,237.85,4.78395066]
[1732150443999,4.2025,237.96,237.85,24.78395066]
[1732150444303,4.2025,237.96,237.85,20.0]
[1732150444840,24.276884,237.95,237.85,20.0]
[1732150445044,24.276884,237.95,237.84,22.8636]
[1732150445627,4.2027,237.94,237.84,22.8636]
[1732150446602,4.2027,237.94,237.84,27.64755066]
[1732150447631,4.2027,237.94,237.84,22.8636]
[1732150449727,24.276884,237.93,237.84,22.8636]
[1732150450322,0.5,237.91,237.79,6.46702911]
[1732150451042,0.5,237.91,237.78,27.89562911]
[1732150451223,0.5,237.91,237.78,32.67957977]
[1732150451420,4.2034,237.9,237.79,20.0]
[1732150452117,4.2034,237.9,237.78,32.67957977]
[1732150452118,24.276884,237.89,237.78,32.67957977]
[1732150452343,23.776884,237.87,237.78,21.4286]
[1732150453233,0.5,237.85,237.76,6.46702911]
[1732150453422,0.5,237.85,237.75,20.0]
[1732150454006,32.40579506,237.87,237.75,20.0]
[1732150454327,32.40579506,237.87,237.73,22.8336]
[1732150454328,23.776884,237.85,237.73,29.30062911]
[1732150454535,23.776884,237.85,237.73,34.08457977]
[1732150454753,23.776884,237.85,237.74,20.0]
[1732150455045,4.2041,237.86,237.74,31.25097977]
[1732150455831,0.5,237.89,237.74,31.25097977]
[1732150456030,23.776884,237.87,237.74,31.25097977]
[1732150456234,24.276884,237.87,237.74,31.25097977]
[1732150456646,0.5,237.84,237.74,24.78395066]
[1732150457916,4.2046,237.83,237.74,24.78395066]
[1732150458642,0.5,237.76,237.65,5.01830772]
[1732150458844,0.5,237.74,237.64,15.7185]
[1732150459924,4.2064,237.73,237.64,21.28242698]
[1732150463135,16.8916,237.8,237.65,10.08209986]
[1732150463340,4.7057,237.78,237.65,10.08209986]
[1732150463533,0.5,237.75,237.65,5.56392698]
[1732150463941,23.776884,237.77,237.59,20.91207288]
[1732150463942,0.5,237.73,237.59,20.91207288]
[1732150464243,0.5,237.73,237.59,16.3939]
[1732150464244,8.12891106,237.72,237.59,16.3939]
[1732150464840,4.2068,237.71,237.59,16.3939]
[1732150465127,4.2068,237.71,237.59,21.95782698]
[1732150465655,8.12891106,237.68,237.59,5.56392698]
[1732150465948,8.62891106,237.68,237.55,4.51817288]
[1732150466130,8.62891106,237.66,237.54,16.3939]
[1732150466328,8.12891106,237.63,237.53,5.56392698]
[1732150466727,0.5,237.64,237.53,5.56392698]
[1732150467051,4.2082,237.63,237.53,5.56392698]
[1732150467233,0.5,237.61,237.48,20.79497288]
[1732150467444,8.12891106,237.6,237.48,20.79497288]
[1732150467739,0.5,237.59,237.48,20.79497288]
[1732150468139,0.5,237.59,237.48,16.2768]
[1732150468439,0.5,237.59,237.46,5.27503809]
[1732150468440,4.2091,237.58,237.46,5.27503809]
[1732150468950,12.33801106,237.58,237.46,5.27503809]
[1732150469184,8.12891106,237.57,237.46,5.27503809]
[1732150469326,8.12891106,237.56,237.45,6.2161]
[1732150469851,8.12891106,237.56,237.46,20.0]
[1732150470142,4.2096,237.55,237.41,21.76803809]
[1732150471241,8.12891106,237.54,237.41,21.76803809]
[1732150471430,4.2099,237.53,237.42,20.0]
[1732150472959,12.33831106,237.56,237.42,25.27503809]
[1732150474229,15.7097,237.59,237.46,20.0]
[1732150474434,16.5464,237.65,237.5,20.0]
[1732150474652,16.5464,237.65,237.52,20.0]
[1732150474962,16.5464,237.65,237.53,20.0]
[1732150475163,16.5464,237.65,237.53,25.27503809]
[1732150475339,20.7543,237.65,237.53,20.0]
[1732150475536,8.62891106,237.64,237.5,20.0]
[1732150475757,8.62891106,237.64,237.48,20.0]
[1732150476263,8.12891106,237.62,237.48,20.0]
[1732150476435,8.62891106,237.62,237.48,20.0]
[1732150477542,4.2085,237.61,237.48,20.0]
[1732150479466,20.7549,237.61,237.48,20.0]
[1732150479961,16.5464,237.61,237.49,23.776884]
[1732150480166,16.5464,237.61,237.52,20.0]
[1732150480543,16.5464,237.65,237.52,20.0]
[1732150480858,16.5464,237.67,237.55,23.776884]
[1732150481040,19.4583,237.7,237.56,25.27503809]
[1732150481365,10.6296,237.69,237.56,25.27503809]
[1732150486550,10.6296,237.69,237.56,20.0]
[1732150486753,10.6296,237.69,237.52,43.776884]
[1732150487058,10.6296,237.69,237.54,43.776884]
[1732150487448,4.2075,237.67,237.54,20.0]
[1732150487777,8.62891106,237.66,237.52,20.0]
[1732150487950,8.62891106,237.66,237.51,21.7453]
[1732150488672,4.2078,237.65,237.51,21.7453]
[1732150489159,8.62891106,237.64,237.47,5.27503809]
[1732150490663,4.2082,237.63,237.48,20.0]
[1732150491466,8.628911,237.62,237.48,20.0]
[1732150492790,4.2085,237.61,237.48,20.0]
[1732150492943,16.375,237.6,237.48,20.0]
[1732150494054,20.5839,237.6,237.48,20.0]
[1732150496070,16.375,237.6,237.5,20.0]
[1732150499868,4.2081,237.64,237.52,20.0]
[1732150504163,4.2081,237.64,237.49,20.0]
[1732150504555,8.12891106,237.63,237.49,20.0]
[1732150504948,8.12891106,237.6,237.47,20.0]
[1732150505147,16.2626,237.56,237.41,16.6103]
[1732150505346,24.39151106,237.56,237.41,16.6103]
[1732150505550,16.2626,237.56,237.41,16.6103]
[1732150506262,4.2096,237.55,237.41,16.6103]
[1732150506443,4.2096,237.55,237.42,23.776884]
[1732150506645,4.2096,237.55,237.43,20.0]
[1732150507053,4.2096,237.55,237.45,20.0]
[1732150507659,4.2096,237.55,237.43,20.0]
[1732150508052,12.33851106,237.55,237.4,20.0]
[1732150508269,8.12891106,237.54,237.36,15.0427]
[1732150508452,8.12891106,237.52,237.36,15.0427]
[1732150509059,8.12891106,237.52,237.34,6.6574]
[1732150509060,8.12891106,237.5,237.34,6.6574]
[1732150509580,8.12891106,237.48,237.33,5.27503809]
[1732150509786,8.12891106,237.46,237.33,5.27503809]
[1732150509957,8.12891106,237.46,237.27,0.4684832]
[1732150509958,8.12891106,237.43,237.27,5.74352129]
[1732150510283,8.12891106,237.4,237.27,5.74352129]
[1732150510882,4.2124,237.39,237.27,5.74352129]
[1732150511383,23.87151106,237.38,237.27,0.4684832]
[1732150511754,8.12891106,237.37,237.27,0.4684832]
[1732150512285,4.213,237.36,237.27,0.4684832]
[1732150512577,12.34191106,237.36,237.27,0.4684832]
[1732150512785,16.97747844,237.36,237.27,0.4684832]
[1732150513080,12.76447844,237.29,237.27,0.4684832]
[1732150513388,23.776884,237.33,237.17,1.2]
[1732150513389,12.76447844,237.28,237.17,1.2]
[1732150513675,12.76447844,237.3,237.17,1.2]
[1732150513881,12.76447844,237.29,237.17,1.2]
[1732150514284,12.76447844,237.33,237.17,1.2]
[1732150514484,10.7599,237.34,237.19,23.776884]
[1732150514666,10.7599,237.34,237.2,5.27503809]
[1732150514982,23.52437844,237.34,237.2,5.27503809]
[1732150516457,10.7599,237.34,237.19,20.0]
[1732150517864,23.52437844,237.34,237.19,20.0]
[1732150518068,10.7599,237.34,237.19,20.0]
[1732150518662,6.5464,237.34,237.21,20.0]
[1732150518977,4.213,237.36,237.23,20.0]
[1732150519472,4.213,237.36,237.21,20.0]
[1732150520757,19.9553,237.38,237.25,20.0]
[1732150521093,12.76447844,237.41,237.27,20.0]
[1732150521387,16.97637844,237.42,237.27,20.0]
[1732150521733,12.76447844,237.41,237.24,23.776884]
[1732150521885,4.2122,237.4,237.25,20.0]
[1732150522963,27.988584,237.43,237.25,20.0]
[1732150524389,4.2117,237.44,237.31,20.0]
[1732150524561,4.2108,237.48,237.31,20.0]
[1732150524885,4.2108,237.48,237.32,5.27503809]
[1732150525093,4.2108,237.48,237.33,43.776884]
[1732150526175,4.2108,237.48,237.32,9.79198039]
[1732150526176,4.2108,237.48,237.3,20.0]
[1732150526479,4.2108,237.48,237.32,20.0]
[1732150526987,12.76447844,237.47,237.3,20.0]
[1732150527160,4.2112,237.46,237.32,20.0]
[1732150527361,4.2112,237.46,237.3,23.776884]
[1732150527558,23.776884,237.45,237.29,49.1865]
[1732150527796,23.776884,237.45,237.29,21.9865]
[1732150527974,12.76447844,237.44,237.29,21.9865]
[1732150529287,4.2117,237.43,237.3,20.0]
[1732150529691,4.2117,237.43,237.31,5.27503809]
[1732150529859,4.2115,237.45,237.32,20.0]
[1732150531297,4.2115,237.45,237.29,21.9865]
[1732150531485,4.2115,237.45,237.3,20.0]
[1732150532777,12.76447844,237.45,237.3,20.0]
[1732150534709,36.54136244,237.43,237.3,20.0]
[1732150534906,36.54136244,237.43,237.27,23.776884]
[1732150535206,36.54136244,237.43,237.28,20.0]
[1732150535910,12.76447844,237.41,237.27,20.0]
[1732150536894,4.2119,237.42,237.29,20.0]
[1732150537096,4.2119,237.42,237.3,5.27503809]
[1732150539095,4.2119,237.42,237.29,20.0]
[1732150542208,12.76447844,237.42,237.25,20.0]
[1732150542449,16.5898,237.41,237.26,23.776884]
[1732150542722,16.5898,237.41,237.27,20.0]
[1732150543024,12.76447844,237.4,237.24,26.93663809]
[1732150543323,12.76447844,237.4,237.25,23.776884]
[1732150543534,12.76447844,237.38,237.19,21.8984]
[1732150543821,12.76447844,237.38,237.19,27.17343809]
[1732150544252,27.989284,237.39,237.19,31.69038039]
[1732150544530,4.2128,237.37,237.19,31.69038039]
[1732150545043,4.2128,237.37,237.21,20.0]
[1732150545215,4.2128,237.37,237.23,20.0]
[1732150546707,4.2128,237.37,237.22,20.0]
[1732150555040,4.2131,237.35,237.22,20.0]
[1732150555337,15.1731,237.34,237.22,20.0]
[1732150555747,15.1731,237.34,237.17,1.2]
[1732150555914,15.1731,237.34,237.18,23.776884]
[1732150556115,12.76447844,237.32,237.17,1.2]
[1732150557012,4.2138,237.31,237.17,1.2]
[1732150559128,23.776884,237.3,237.17,1.2]
[1732150559527,15.5486,237.29,237.17,1.2]
[1732150560247,4.2144,237.28,237.17,1.2]
[1732150561763,16.97887844,237.28,237.17,1.2]
[1732150562845,4.2144,237.28,237.17,1.2]
[1732150563056,4.2144,237.28,237.18,5.27503809]
[1732150563427,15.5486,237.29,237.18,5.27503809]
[1732150563759,19.7629,237.29,237.18,5.27503809]
[1732150563931,15.5486,237.29,237.18,5.27503809]
[1732150564136,19.7628,237.29,237.18,5.27503809]
[1732150564453,19.7628,237.29,237.17,1.2]
[1732150568540,36.612103,237.29,237.17,1.2]
[1732150569463,42.91456244,237.28,237.17,1.2]
[1732150569627,12.76447844,237.27,237.17,1.2]
[1732150570039,23.776884,237.26,237.17,1.2]
[1732150570559,4.2149,237.25,237.17,1.2]
[1732150570732,4.2147,237.27,237.17,1.2]
[1732150576254,6.3732,237.28,237.18,5.27503809]
[1732150576535,19.7629,237.29,237.18,5.27503809]
[1732150576536,15.5486,237.29,237.19,20.0]
[1732150577243,15.5486,237.29,237.2,23.776884]
[1732150577559,15.5486,237.29,237.21,20.0]
[1732150581664,15.5486,237.29,237.19,23.776884]
[1732150581856,15.5486,237.29,237.2,20.0]
[1732150585066,15.5486,237.29,237.2,25.27503809]
[1732150589674,15.5486,237.29,237.21,5.27503809]
[1732150589877,15.5486,237.29,237.21,9.79198039]
[1732150590257,15.5486,237.29,237.21,5.27503809]
[1732150592176,15.5486,237.29,237.17,1.2]
[1732150593795,19.7629,237.29,237.17,1.2]
[1732150594363,19.7629,237.29,237.17,6.47503809]
[1732150594680,19.7629,237.29,237.19,20.0]
[1732150594880,19.7629,237.29,237.19,25.27503809]
[1732150595184,15.5486,237.29,237.19,25.27503809]
[1732150596860,15.5486,237.29,237.21,20.0]
[1732150597389,15.5486,237.29,237.23,20.0]
[1732150597569,15.5486,237.29,237.23,25.27503809]
[1732150598385,6.6446,237.33,237.25,43.776884]
[1732150598556,15.681,237.35,237.26,5.27503809]
[1732150598761,15.681,237.35,237.27,20.0]
[1732150601089,15.681,237.35,237.27,5.27503809]
[1732150602088,6.621,237.38,237.28,48.2938263]
[1732150602298,15.2664,237.41,237.29,5.27503809]
[1732150602595,15.2664,237.41,237.3,43.776884]
[1732150602762,15.2664,237.41,237.31,5.27503809]
[1732150602964,15.2664,237.41,237.33,20.0]
[1732150603493,15.2664,237.41,237.34,23.776884]
[1732150604468,6.5908,237.44,237.35,20.0]
[1732150604678,15.8069,237.47,237.37,20.0]
[1732150604878,15.8069,237.47,237.39,20.0]
[1732150605075,6.4288,237.5,237.41,20.0]
[1732150607095,20.5364,237.53,237.41,20.0]
[1732150611172,6.5372,237.55,237.43,20.0]
[1732150611371,6.5372,237.55,237.44,23.776884]
[1732150611372,10.7469,237.55,237.44,23.776884]
[1732150612386,10.7469,237.55,237.43,20.0]
[1732150612691,10.7469,237.55,237.41,20.0]
[1732150612895,10.7469,237.55,237.43,20.0]
[1732150615366,10.7469,237.55,237.43,25.27503809]
[1732150615570,10.7469,237.55,237.44,5.27503809]
[1732150615998,10.7469,237.55,237.45,20.0]
[1732150620690,10.7469,237.55,237.44,5.27503809]
[1732150620899,10.7469,237.55,237.43,20.0]
[1732150621194,10.7469,237.55,237.44,23.776884]
[1732150621393,10.7469,237.55,237.45,20.0]
[1732150622493,10.7469,237.55,237.4,20.0]
[1732150622689,10.7469,237.55,237.41,23.776884]
[1732150622890,18.90593399,237.55,237.42,20.0]
[1732150624110,8.15903399,237.53,237.38,4.5169423]
[1732150625577,4.2101,237.52,237.38,24.5169423]
[1732150625772,4.2101,237.52,237.39,5.27503809]
[1732150628481,8.15903399,237.51,237.39,5.27503809]
[1732150628670,4.2105,237.5,237.39,5.27503809]
[1732150629003,8.15903399,237.49,237.39,5.27503809]
[1732150630076,4.2108,237.48,237.39,5.27503809]
[1732150630575,16.2518,237.47,237.39,5.27503809]
[1732150631101,16.2518,237.47,237.33,4.5169423]
[1732150631102,8.15903399,237.45,237.33,4.5169423]
[1732150631683,8.15903399,237.45,237.31,5.27503809]
[1732150632008,4.2115,237.44,237.31,5.27503809]
[1732150632200,4.2115,237.44,237.31,9.54283348]
[1732150632412,4.2115,237.44,237.32,4.98335389]
[1732150632725,6.6642,237.46,237.32,29.25114928]
[1732150632877,10.8755,237.46,237.32,29.25114928]
[1732150633075,10.8755,237.46,237.33,24.26779539]
[1732150633273,10.8755,237.46,237.34,24.98335389]
[1732150633503,6.6642,237.46,237.36,20.0]
[1732150633676,6.6642,237.46,237.37,4.98335389]
[1732150633877,16.2518,237.47,237.37,9.25114928]
[1732150634076,10.5985,237.52,237.38,43.776884]
[1732150634294,10.5985,237.52,237.39,4.98335389]
[1732150634505,10.5985,237.52,237.41,20.0]
[1732150634696,10.5985,237.52,237.4,23.776884]
[1732150634876,6.3882,237.52,237.41,20.0]
[1732150641002,18.75743399,237.52,237.35,50.3532]
[1732150641303,8.15903399,237.48,237.35,27.2]
[1732150641501,8.15903399,237.48,237.3,6.3947]
[1732150641713,15.9476,237.47,237.3,6.3947]
[1732150642227,8.15903399,237.42,237.24,31.46779539]
[1732150642506,8.15903399,237.4,237.23,20.63073559]
[1732150642807,23.776884,237.44,237.23,20.63073559]
[1732150643015,12.37073399,237.43,237.24,4.48853559]
[1732150643305,8.15903399,237.41,237.24,4.48853559]
[1732150643683,8.15903399,237.41,237.24,24.48853559]
[1732150644081,4.2122,237.4,237.27,23.776884]
[1732150644501,4.2122,237.4,237.28,20.0]
[1732150644905,8.15903399,237.39,237.28,20.0]
[1732150645117,8.15903399,237.35,237.18,8.75633098]
[1732150645285,8.15903399,237.35,237.18,4.26779539]
[1732150645608,8.15903399,237.35,237.17,17.3422]
[1732150645998,4.2128,237.37,237.17,17.3422]
[1732150645999,4.2128,237.37,237.18,9.3885483]
[1732150646185,22.1109,237.38,237.18,9.8885483]
[1732150646581,22.1109,237.38,237.19,20.0]
[1732150646902,22.1109,237.38,237.21,20.5]
[1732150647205,22.1109,237.38,237.22,9.38830264]
[1732150647378,22.1109,237.38,237.23,20.0]
[1732150647579,22.1109,237.38,237.26,23.776884]
[1732150648022,22.1109,237.38,237.28,23.776884]
[1732150648185,22.1109,237.38,237.29,20.0]
[1732150649488,22.1109,237.38,237.31,20.0]
[1732150649489,15.9476,237.38,237.31,20.0]
[1732150650093,15.9476,237.38,237.29,20.0]
[1732150650511,15.9476,237.38,237.31,20.0]
[1732150651181,15.9476,237.38,237.27,20.0]
[1732150651379,15.9476,237.38,237.31,20.0]
[1732150655986,22.2226,237.44,237.33,20.0]
[1732150656191,22.2226,237.44,237.35,20.0]
[1732150656403,22.2226,237.44,237.36,23.776884]
[1732150656691,22.2226,237.44,237.37,20.0]
[1732150658286,22.2226,237.44,237.32,20.0]
[1732150658501,22.2226,237.44,237.34,20.0]
[1732150660914,26.4342,237.44,237.34,20.0]
[1732150661085,12.75378319,237.41,237.27,4.26779539]
[1732150661286,12.75378319,237.41,237.26,4.48853559]
[1732150662614,15.1524,237.36,237.22,4.26779539]
[1732150664009,15.1524,237.36,237.22,24.26779539]